[Event "January 9 Early 2024"]
[Site "https://www.chess.com"]
[Date "2024.01.11"]
[Round "10"]
[White "Adel, Sara"]
[Black "Krivenko, Dion"]
[Result "0-1"]
[Board "162"]
[TimeControl "180+1"]
[WhiteFideId "10616764"]
[BlackFideId "4508378"]
[WhiteElo "2225"]
[BlackElo "2457"]
[WhiteTeam "EGY"]
[BlackTeam "EST"]
[WhiteClock "0:00:22"]
[BlackClock "0:00:06"]

1. e4 {[%clk 0:03:00]}  c6 {[%clk 0:02:53]} 2. d4 {[%clk 0:03:00]}  d5 {[%clk 0:02:53]} 3. Nc3 {[%clk 0:03:01]}  a6 {[%clk 0:02:52]} 4. Nf3 {[%clk 0:02:58]}  dxe4 {[%clk 0:02:48]} 5. Nxe4 {[%clk 0:02:59]}  Nf6 {[%clk 0:02:49]} 6. Ng3 {[%clk 0:02:58]}  Bg4 {[%clk 0:02:41]} 7. c3 {[%clk 0:02:54]}  e6 {[%clk 0:02:40]} 8. Bc4 {[%clk 0:02:52]}  Nbd7 {[%clk 0:02:39]} 9. Bf4 {[%clk 0:02:49]}  Be7 {[%clk 0:02:38]} 10. h3 {[%clk 0:02:47]}  Nh5 {[%clk 0:02:19]} 11. Nxh5 {[%clk 0:02:30]}  Bxh5 {[%clk 0:02:19]} 12. g4 {[%clk 0:02:22]}  Bg6 {[%clk 0:02:19]} 13. O-O {[%clk 0:02:22]}  h5 {[%clk 0:02:12]} 14. Ne5 {[%clk 0:02:19]}  Nxe5 {[%clk 0:02:08]} 15. Bxe5 {[%clk 0:02:19]}  hxg4 {[%clk 0:02:05]} 16. Qxg4 {[%clk 0:02:17]}  Bf6 {[%clk 0:01:35]} 17. Bxe6 {[%clk 0:02:07]}  Bh5 {[%clk 0:01:21]} 18. Bxf6 {[%clk 0:01:57]}  Qxf6 {[%clk 0:01:21]} 19. Bd7+ {[%clk 0:01:52]}  Kd8 {[%clk 0:01:09]} 20. Qf5 {[%clk 0:01:46]}  Qd6 {[%clk 0:01:01]} 21. Qg5+ {[%clk 0:01:29]}  Kxd7 {[%clk 0:00:56]} 22. Rae1 {[%clk 0:01:25]}  Qf6 {[%clk 0:00:24]} 23. Qg3 {[%clk 0:00:58]}  Qg6 {[%clk 0:00:21]} 24. Re5 {[%clk 0:00:46]}  Qxg3+ {[%clk 0:00:21]} 25. fxg3 {[%clk 0:00:43]}  Bg6 {[%clk 0:00:22]} 26. Rfe1 {[%clk 0:00:44]}  Rae8 {[%clk 0:00:19]} 27. Kg2 {[%clk 0:00:15]}  Rxe5 {[%clk 0:00:19]} 28. dxe5 {[%clk 0:00:15]}  Ke6 {[%clk 0:00:20]} 29. Kf3 {[%clk 0:00:15]}  Rd8 {[%clk 0:00:19]} 30. Kf4 {[%clk 0:00:15]}  Rd2 {[%clk 0:00:17]} 31. g4 {[%clk 0:00:15]}  Rxb2 {[%clk 0:00:16]} 32. Rd1 {[%clk 0:00:16]}  Rf2+ {[%clk 0:00:15]} 33. Ke3 {[%clk 0:00:16]}  Rxa2 {[%clk 0:00:15]} 34. Kf4 {[%clk 0:00:16]}  Ra4+ {[%clk 0:00:15]} 35. Ke3 {[%clk 0:00:16]}  Re4+ {[%clk 0:00:15]} 36. Kf3 {[%clk 0:00:16]}  Rxe5 {[%clk 0:00:16]} 37. h4 {[%clk 0:00:17]}  Rc5 {[%clk 0:00:15]} 38. h5 {[%clk 0:00:16]}  Rxc3+ {[%clk 0:00:16]} 39. Kf4 {[%clk 0:00:17]}  Bc2 {[%clk 0:00:14]} 40. Re1+ {[%clk 0:00:18]}  Kd7 {[%clk 0:00:12]} 41. Kg5 {[%clk 0:00:18]}  Rc5+ {[%clk 0:00:10]} 42. Kh4 {[%clk 0:00:18]}  a5 {[%clk 0:00:10]} 43. Rf1 {[%clk 0:00:19]}  Ke7 {[%clk 0:00:10]} 44. g5 {[%clk 0:00:19]}  Rc4+ {[%clk 0:00:09]} 45. Kg3 {[%clk 0:00:19]}  a4 {[%clk 0:00:10]} 46. h6 {[%clk 0:00:19]}  gxh6 {[%clk 0:00:10]} 47. gxh6 {[%clk 0:00:20]}  a3 {[%clk 0:00:11]} 48. Rf2 {[%clk 0:00:21]}  Bg6 {[%clk 0:00:10]} 49. Ra2 {[%clk 0:00:20]}  Rc3+ {[%clk 0:00:09]} 50. Kg4 {[%clk 0:00:21]}  b5 {[%clk 0:00:10]} 51. Kg5 {[%clk 0:00:21]}  b4 {[%clk 0:00:10]} 52. Re2+ {[%clk 0:00:21]}  Kd7 {[%clk 0:00:09]} 53. Kf6 {[%clk 0:00:21]}  Rf3+ {[%clk 0:00:07]} 54. Kg7 {[%clk 0:00:21]}  Rh3 {[%clk 0:00:07]} 55. Rd2+ {[%clk 0:00:21]}  Kc7 {[%clk 0:00:07]} 56. Rg2 {[%clk 0:00:19]}  b3 {[%clk 0:00:07]} 57. Rxg6 {[%clk 0:00:19]}  fxg6 {[%clk 0:00:07]} 58. h7 {[%clk 0:00:20]}  a2 {[%clk 0:00:07]} 59. Kg8 {[%clk 0:00:21]}  a1=Q {[%clk 0:00:07]} 60. Kf7 {[%clk 0:00:22]}  Rxh7+ {[%clk 0:00:06]} 0-1

[Event "January 9 Early 2024"]
[Site "https://www.chess.com"]
[Date "2024.01.11"]
[Round "10"]
[White "Balla, Tamas-Kristof"]
[Black "Blokhin, Sofia"]
[Result "1-0"]
[Board "163"]
[TimeControl "180+1"]
[WhiteFideId "1208497"]
[BlackFideId "4508190"]
[WhiteElo "2470"]
[BlackElo "2301"]
[WhiteTeam "ROU"]
[BlackTeam "EST"]
[WhiteClock "0:00:06"]
[BlackClock "0:00:09"]

1. e4 {[%clk 0:02:59]}  c5 {[%clk 0:02:59]} 2. c3 {[%clk 0:02:59]}  e6 {[%clk 0:02:56]} 3. d4 {[%clk 0:02:59]}  Nf6 {[%clk 0:02:51]} 4. e5 {[%clk 0:02:59]}  Nd5 {[%clk 0:02:51]} 5. Nf3 {[%clk 0:03:00]}  cxd4 {[%clk 0:02:50]} 6. cxd4 {[%clk 0:03:00]}  d6 {[%clk 0:02:50]} 7. a3 {[%clk 0:02:59]}  Nc6 {[%clk 0:02:50]} 8. Bd3 {[%clk 0:02:59]}  Be7 {[%clk 0:02:49]} 9. O-O {[%clk 0:02:59]}  O-O {[%clk 0:02:49]} 10. Qe2 {[%clk 0:02:59]}  dxe5 {[%clk 0:02:45]} 11. dxe5 {[%clk 0:02:59]}  g6 {[%clk 0:02:41]} 12. Bh6 {[%clk 0:02:58]}  Re8 {[%clk 0:02:39]} 13. Nbd2 {[%clk 0:02:53]}  Bf8 {[%clk 0:02:37]} 14. Bxf8 {[%clk 0:02:51]}  Rxf8 {[%clk 0:02:26]} 15. Be4 {[%clk 0:02:46]}  Nce7 {[%clk 0:02:21]} 16. Nc4 {[%clk 0:02:43]}  Bd7 {[%clk 0:02:09]} 17. Nd6 {[%clk 0:02:33]}  Qb6 {[%clk 0:01:55]} 18. Rfd1 {[%clk 0:02:27]}  Ba4 {[%clk 0:01:50]} 19. Rd4 {[%clk 0:02:17]}  Bd7 {[%clk 0:01:28]} 20. Qd2 {[%clk 0:02:15]}  Nc6 {[%clk 0:01:24]} 21. Qh6 {[%clk 0:02:11]}  Nxe5 {[%clk 0:01:19]} 22. Rxd5 {[%clk 0:01:30]}  Nxf3+ {[%clk 0:01:15]} 23. Bxf3 {[%clk 0:01:01]}  exd5 {[%clk 0:01:14]} 24. Qf4 {[%clk 0:00:57]}  Be6 {[%clk 0:01:06]} 25. a4 {[%clk 0:00:50]}  a6 {[%clk 0:01:05]} 26. a5 {[%clk 0:00:28]}  Qxb2 {[%clk 0:01:01]} 27. Re1 {[%clk 0:00:23]}  Rad8 {[%clk 0:00:53]} 28. h4 {[%clk 0:00:05]}  Qc3 {[%clk 0:00:52]} 29. Re3 {[%clk 0:00:03]}  Qc7 {[%clk 0:00:48]} 30. h5 {[%clk 0:00:03]}  Qxd6 {[%clk 0:00:47]} 31. Qf6 {[%clk 0:00:04]}  Bf5 {[%clk 0:00:32]} 32. Qg5 {[%clk 0:00:02]}  f6 {[%clk 0:00:22]} 33. Qh4 {[%clk 0:00:01]}  g5 {[%clk 0:00:21]} 34. Qg3 {[%clk 0:00:01]}  Qxg3 {[%clk 0:00:20]} 35. fxg3 {[%clk 0:00:02]}  d4 {[%clk 0:00:20]} 36. Re1 {[%clk 0:00:02]}  d3 {[%clk 0:00:20]} 37. Bxb7 {[%clk 0:00:02]}  d2 {[%clk 0:00:20]} 38. Rd1 {[%clk 0:00:03]}  Bc2 {[%clk 0:00:19]} 39. Rxd2 {[%clk 0:00:03]}  Rxd2 {[%clk 0:00:19]} 40. Bxa6 {[%clk 0:00:04]}  Bd3 {[%clk 0:00:17]} 41. Bb7 {[%clk 0:00:05]}  Rd1+ {[%clk 0:00:15]} 42. Kh2 {[%clk 0:00:05]}  Ra1 {[%clk 0:00:16]} 43. Bd5+ {[%clk 0:00:04]}  Kg7 {[%clk 0:00:15]} 44. a6 {[%clk 0:00:04]}  Bxa6 {[%clk 0:00:14]} 45. g4 {[%clk 0:00:04]}  Rd8 {[%clk 0:00:13]} 46. Bf3 {[%clk 0:00:05]}  Rd2 {[%clk 0:00:12]} 47. Kg3 {[%clk 0:00:05]}  Raa2 {[%clk 0:00:11]} 48. h6+ {[%clk 0:00:05]}  Kxh6 {[%clk 0:00:10]} 49. Be4 {[%clk 0:00:05]}  Kg7 {[%clk 0:00:10]} 50. Bf3 {[%clk 0:00:06]}  Bf1 {[%clk 0:00:10]} 51. Kh3 {[%clk 0:00:05]}  Bxg2+ {[%clk 0:00:09]} 52. Bxg2 {[%clk 0:00:06]} 1-0

[Event "January 9 Early 2024"]
[Site "https://www.chess.com"]
[Date "2024.01.11"]
[Round "10"]
[White "Antunez Soler, Luis"]
[Black "Khouri, Ahmed Abbas"]
[Result "1-0"]
[Board "164"]
[TimeControl "180+1"]
[WhiteFideId "3513335"]
[BlackFideId "9301518"]
[WhiteElo "2601"]
[BlackElo "2323"]
[WhiteTeam "CUB"]
[BlackTeam "UAE"]
[WhiteClock "0:00:10"]
[BlackClock "0:00:10"]

1. e4 {[%clk 0:03:00]}  d5 {[%clk 0:02:59]} 2. exd5 {[%clk 0:03:00]}  Qxd5 {[%clk 0:03:00]} 3. Nc3 {[%clk 0:03:00]}  Qd6 {[%clk 0:03:01]} 4. d4 {[%clk 0:03:01]}  Nf6 {[%clk 0:03:02]} 5. Nf3 {[%clk 0:03:02]}  Bg4 {[%clk 0:03:02]} 6. h3 {[%clk 0:03:02]}  Bh5 {[%clk 0:03:02]} 7. g4 {[%clk 0:03:01]}  Bg6 {[%clk 0:03:03]} 8. Ne5 {[%clk 0:03:02]}  Nbd7 {[%clk 0:03:04]} 9. f4 {[%clk 0:02:26]}  e6 {[%clk 0:03:03]} 10. Bg2 {[%clk 0:02:25]}  c6 {[%clk 0:02:43]} 11. O-O {[%clk 0:02:05]}  Be7 {[%clk 0:02:37]} 12. Be3 {[%clk 0:02:02]}  Nb6 {[%clk 0:02:28]} 13. Qf3 {[%clk 0:01:51]}  Nbd5 {[%clk 0:02:27]} 14. Bd2 {[%clk 0:01:27]}  Bxc2 {[%clk 0:02:21]} 15. g5 {[%clk 0:01:12]}  Nd7 {[%clk 0:02:07]} 16. Rac1 {[%clk 0:01:11]}  Bf5 {[%clk 0:02:06]} 17. Ne4 {[%clk 0:00:59]}  Bxe4 {[%clk 0:01:48]} 18. Qxe4 {[%clk 0:01:00]}  O-O {[%clk 0:01:49]} 19. Bf3 {[%clk 0:00:57]}  f5 {[%clk 0:01:22]} 20. gxf6 {[%clk 0:00:53]}  Rxf6 {[%clk 0:01:19]} 21. Bg4 {[%clk 0:00:49]}  Nf8 {[%clk 0:00:57]} 22. Rce1 {[%clk 0:00:44]}  Re8 {[%clk 0:00:54]} 23. Kh1 {[%clk 0:00:32]}  g6 {[%clk 0:00:47]} 24. Nc4 {[%clk 0:00:29]}  Qd7 {[%clk 0:00:43]} 25. Ne5 {[%clk 0:00:29]}  Qd6 {[%clk 0:00:43]} 26. a3 {[%clk 0:00:29]}  Bd8 {[%clk 0:00:41]} 27. Rf3 {[%clk 0:00:29]}  Bb6 {[%clk 0:00:40]} 28. b4 {[%clk 0:00:27]}  Ne7 {[%clk 0:00:37]} 29. Bc3 {[%clk 0:00:20]}  Nf5 {[%clk 0:00:37]} 30. Rd3 {[%clk 0:00:18]}  Rd8 {[%clk 0:00:32]} 31. Red1 {[%clk 0:00:18]}  Nd7 {[%clk 0:00:22]} 32. Kh2 {[%clk 0:00:17]}  Nf8 {[%clk 0:00:20]} 33. a4 {[%clk 0:00:15]}  a6 {[%clk 0:00:20]} 34. R1d2 {[%clk 0:00:14]}  Qd5 {[%clk 0:00:17]} 35. Qe2 {[%clk 0:00:12]}  Nd7 {[%clk 0:00:16]} 36. Bf3 {[%clk 0:00:12]}  Qd6 {[%clk 0:00:16]} 37. Bg4 {[%clk 0:00:11]}  Rff8 {[%clk 0:00:09]} 38. d5 {[%clk 0:00:10]}  exd5 {[%clk 0:00:08]} 39. Nxd7 {[%clk 0:00:08]}  Rxd7 {[%clk 0:00:08]} 40. Be5 {[%clk 0:00:07]}  Qe6 {[%clk 0:00:09]} 41. Qf3 {[%clk 0:00:07]}  Bc7 {[%clk 0:00:08]} 42. Re2 {[%clk 0:00:07]}  Bxe5 {[%clk 0:00:09]} 43. Rxe5 {[%clk 0:00:08]}  Qf6 {[%clk 0:00:09]} 44. Bxf5 {[%clk 0:00:08]}  gxf5 {[%clk 0:00:09]} 45. Rd2 {[%clk 0:00:09]}  Rff7 {[%clk 0:00:10]} 46. Rg2+ {[%clk 0:00:09]}  Rg7 {[%clk 0:00:10]} 47. Rge2 {[%clk 0:00:10]}  Rge7 {[%clk 0:00:11]} 48. Qh5 {[%clk 0:00:10]}  Rxe5 {[%clk 0:00:10]} 49. fxe5 {[%clk 0:00:10]}  Re7 {[%clk 0:00:11]} 50. exf6 {[%clk 0:00:10]}  Rxe2+ {[%clk 0:00:10]} 51. Qxe2 {[%clk 0:00:10]} 1-0

[Event "January 9 Early 2024"]
[Site "https://www.chess.com"]
[Date "2024.01.11"]
[Round "10"]
[White "Pakleza, Zbigniew"]
[Black "Aradhya, Garg"]
[Result "1-0"]
[Board "165"]
[TimeControl "180+1"]
[WhiteFideId "1119290"]
[BlackFideId "25006746"]
[WhiteElo "2876"]
[BlackElo "2727"]
[WhiteTeam "POL"]
[BlackTeam "IND"]
[WhiteClock "0:00:11"]
[BlackClock "0:00:09"]

1. d4 {[%clk 0:03:00]}  d5 {[%clk 0:02:59]} 2. Nf3 {[%clk 0:03:00]}  Nf6 {[%clk 0:02:59]} 3. Bf4 {[%clk 0:03:00]}  c5 {[%clk 0:03:00]} 4. c3 {[%clk 0:03:01]}  Nc6 {[%clk 0:03:00]} 5. Nbd2 {[%clk 0:03:01]}  cxd4 {[%clk 0:02:59]} 6. cxd4 {[%clk 0:03:02]}  Bf5 {[%clk 0:02:59]} 7. e3 {[%clk 0:03:02]}  e6 {[%clk 0:02:59]} 8. Qb3 {[%clk 0:03:02]}  Qb6 {[%clk 0:02:54]} 9. Qxb6 {[%clk 0:03:02]}  axb6 {[%clk 0:02:54]} 10. Bb5 {[%clk 0:03:03]}  Nd7 {[%clk 0:02:45]} 11. Ke2 {[%clk 0:03:01]}  Na7 {[%clk 0:02:33]} 12. Bd3 {[%clk 0:02:24]}  Bxd3+ {[%clk 0:02:32]} 13. Kxd3 {[%clk 0:02:25]}  Be7 {[%clk 0:02:32]} 14. Rhc1 {[%clk 0:02:23]}  Nc6 {[%clk 0:02:32]} 15. a3 {[%clk 0:02:20]}  f6 {[%clk 0:02:30]} 16. Bg3 {[%clk 0:02:16]}  Kf7 {[%clk 0:02:30]} 17. e4 {[%clk 0:02:13]}  b5 {[%clk 0:02:30]} 18. exd5 {[%clk 0:02:10]}  exd5 {[%clk 0:02:31]} 19. Nf1 {[%clk 0:02:04]}  Nb6 {[%clk 0:02:31]} 20. Ne3 {[%clk 0:02:04]}  Nc4 {[%clk 0:02:25]} 21. Rab1 {[%clk 0:01:51]}  Rhd8 {[%clk 0:02:22]} 22. h4 {[%clk 0:01:42]}  Ra4 {[%clk 0:02:12]} 23. h5 {[%clk 0:01:33]}  Nxe3 {[%clk 0:02:07]} 24. fxe3 {[%clk 0:01:30]}  b4 {[%clk 0:02:07]} 25. axb4 {[%clk 0:01:26]}  Nxb4+ {[%clk 0:02:04]} 26. Ke2 {[%clk 0:01:24]}  Nc6 {[%clk 0:02:03]} 27. Ne1 {[%clk 0:01:19]}  Re8 {[%clk 0:01:25]} 28. Kf3 {[%clk 0:01:19]}  Rb4 {[%clk 0:01:15]} 29. Nd3 {[%clk 0:01:16]}  Rb3 {[%clk 0:01:15]} 30. Rc3 {[%clk 0:01:17]}  Rb5 {[%clk 0:01:14]} 31. Ra1 {[%clk 0:01:07]}  Rd8 {[%clk 0:00:53]} 32. Bf4 {[%clk 0:00:55]}  g5 {[%clk 0:00:49]} 33. Bg3 {[%clk 0:00:52]}  h6 {[%clk 0:00:40]} 34. Be1 {[%clk 0:00:45]}  Ke6 {[%clk 0:00:40]} 35. g4 {[%clk 0:00:45]}  f5 {[%clk 0:00:40]} 36. Bg3 {[%clk 0:00:45]}  f4 {[%clk 0:00:31]} 37. exf4 {[%clk 0:00:35]}  Nxd4+ {[%clk 0:00:31]} 38. Kg2 {[%clk 0:00:36]}  gxf4 {[%clk 0:00:27]} 39. Re1+ {[%clk 0:00:26]}  Kf7 {[%clk 0:00:27]} 40. Bxf4 {[%clk 0:00:26]}  Rg8 {[%clk 0:00:14]} 41. Kh3 {[%clk 0:00:27]}  Bg5 {[%clk 0:00:11]} 42. Rc7+ {[%clk 0:00:20]}  Kf6 {[%clk 0:00:09]} 43. Be5+ {[%clk 0:00:17]}  Ke6 {[%clk 0:00:09]} 44. Bxd4+ {[%clk 0:00:17]}  Kd6 {[%clk 0:00:10]} 45. Be5+ {[%clk 0:00:18]}  Ke6 {[%clk 0:00:10]} 46. Bf4+ {[%clk 0:00:12]}  Kf6 {[%clk 0:00:11]} 47. Bxg5+ {[%clk 0:00:11]}  Rxg5 {[%clk 0:00:07]} 48. Re2 {[%clk 0:00:11]}  Rb3 {[%clk 0:00:07]} 49. Re3 {[%clk 0:00:10]}  d4 {[%clk 0:00:07]} 50. Rf3+ {[%clk 0:00:11]}  Ke6 {[%clk 0:00:08]} 51. Nf4+ {[%clk 0:00:09]}  Kd6 {[%clk 0:00:08]} 52. Rxb3 {[%clk 0:00:10]}  Kxc7 {[%clk 0:00:08]} 53. Ne6+ {[%clk 0:00:10]}  Kc6 {[%clk 0:00:09]} 54. Nxg5 {[%clk 0:00:11]}  hxg5 {[%clk 0:00:09]} 55. h6 {[%clk 0:00:11]} 1-0

[Event "January 9 Early 2024"]
[Site "https://www.chess.com"]
[Date "2024.01.11"]
[Round "10"]
[White "Saha, Ananda"]
[Black "Ambartsumova, Karina"]
[Result "1-0"]
[Board "167"]
[TimeControl "180+1"]
[WhiteFideId "2619644"]
[BlackFideId "4166299"]
[WhiteElo "2489"]
[BlackElo "2584"]
[WhiteTeam "CAN"]
[BlackTeam "RUS"]
[WhiteClock "0:00:07"]
[BlackClock "0:00:01"]

1. e4 {[%clk 0:03:00]}  e5 {[%clk 0:02:45]} 2. Nc3 {[%clk 0:02:58]}  Nf6 {[%clk 0:02:44]} 3. g3 {[%clk 0:02:58]}  d5 {[%clk 0:02:42]} 4. exd5 {[%clk 0:02:59]}  Nxd5 {[%clk 0:02:42]} 5. Bg2 {[%clk 0:02:59]}  Nb6 {[%clk 0:02:31]} 6. Nf3 {[%clk 0:02:55]}  Nc6 {[%clk 0:02:31]} 7. O-O {[%clk 0:02:54]}  Be7 {[%clk 0:02:29]} 8. Re1 {[%clk 0:02:54]}  f6 {[%clk 0:02:29]} 9. d3 {[%clk 0:02:47]}  O-O {[%clk 0:02:28]} 10. h3 {[%clk 0:02:35]}  Bf5 {[%clk 0:02:21]} 11. Be3 {[%clk 0:02:30]}  Qd7 {[%clk 0:02:20]} 12. Kh2 {[%clk 0:02:25]}  Rad8 {[%clk 0:02:18]} 13. Qe2 {[%clk 0:02:20]}  Rfe8 {[%clk 0:02:16]} 14. Nh4 {[%clk 0:02:16]}  Be6 {[%clk 0:02:14]} 15. g4 {[%clk 0:02:01]}  Bf8 {[%clk 0:02:08]} 16. Be4 {[%clk 0:02:00]}  Nd4 {[%clk 0:01:57]} 17. Bxd4 {[%clk 0:01:48]}  exd4 {[%clk 0:01:58]} 18. Nb1 {[%clk 0:01:43]}  Nd5 {[%clk 0:01:42]} 19. Nd2 {[%clk 0:01:35]}  Nf4 {[%clk 0:01:38]} 20. Qf3 {[%clk 0:01:32]}  Bd6 {[%clk 0:01:38]} 21. Kh1 {[%clk 0:01:25]}  c6 {[%clk 0:01:33]} 22. Rg1 {[%clk 0:01:17]}  Bc7 {[%clk 0:01:27]} 23. Nf5 {[%clk 0:01:12]}  g6 {[%clk 0:00:55]} 24. Nh4 {[%clk 0:00:46]}  Qd6 {[%clk 0:00:55]} 25. Rg3 {[%clk 0:00:42]}  Kg7 {[%clk 0:00:48]} 26. Rag1 {[%clk 0:00:41]}  Qd7 {[%clk 0:00:43]} 27. a3 {[%clk 0:00:33]}  a5 {[%clk 0:00:42]} 28. Qd1 {[%clk 0:00:30]}  a4 {[%clk 0:00:36]} 29. Ndf3 {[%clk 0:00:26]}  Bd5 {[%clk 0:00:31]} 30. Bxd5 {[%clk 0:00:20]}  Qxd5 {[%clk 0:00:32]} 31. Re1 {[%clk 0:00:11]}  Ne6 {[%clk 0:00:26]} 32. Rg2 {[%clk 0:00:06]}  Nf4 {[%clk 0:00:22]} 33. Rg3 {[%clk 0:00:05]}  Kf7 {[%clk 0:00:20]} 34. Rgg1 {[%clk 0:00:03]}  Nxh3 {[%clk 0:00:19]} 35. Rg2 {[%clk 0:00:03]}  Nf4 {[%clk 0:00:18]} 36. Rgg1 {[%clk 0:00:03]}  Qd6 {[%clk 0:00:16]} 37. Rxe8 {[%clk 0:00:02]}  Rxe8 {[%clk 0:00:16]} 38. Re1 {[%clk 0:00:03]}  Nh3 {[%clk 0:00:16]} 39. Kg2 {[%clk 0:00:03]}  Nf4+ {[%clk 0:00:15]} 40. Kg1 {[%clk 0:00:03]}  Ne6 {[%clk 0:00:14]} 41. Kg2 {[%clk 0:00:03]}  Qf4 {[%clk 0:00:13]} 42. Re4 {[%clk 0:00:02]}  Qd6 {[%clk 0:00:13]} 43. Qe2 {[%clk 0:00:03]}  Ng7 {[%clk 0:00:13]} 44. Rxe8 {[%clk 0:00:03]}  Nxe8 {[%clk 0:00:14]} 45. Kf1 {[%clk 0:00:04]}  Qf4 {[%clk 0:00:14]} 46. Ng2 {[%clk 0:00:05]}  Qxg4 {[%clk 0:00:13]} 47. Ne5+ {[%clk 0:00:04]}  fxe5 {[%clk 0:00:09]} 48. Qxg4 {[%clk 0:00:05]}  Nf6 {[%clk 0:00:09]} 49. Qc8 {[%clk 0:00:04]}  Bd6 {[%clk 0:00:08]} 50. Qxb7+ {[%clk 0:00:04]}  Ke6 {[%clk 0:00:08]} 51. Qxc6 {[%clk 0:00:04]}  Nd5 {[%clk 0:00:07]} 52. Qc4 {[%clk 0:00:04]}  g5 {[%clk 0:00:06]} 53. Ne1 {[%clk 0:00:05]}  g4 {[%clk 0:00:06]} 54. c3 {[%clk 0:00:05]}  dxc3 {[%clk 0:00:04]} 55. bxc3 {[%clk 0:00:06]}  h5 {[%clk 0:00:04]} 56. Nc2 {[%clk 0:00:07]}  Bxa3 {[%clk 0:00:02]} 57. Ne3 {[%clk 0:00:07]}  Bc1 {[%clk 0:00:01]} 58. Qxd5+ {[%clk 0:00:07]} 1-0

[Event "January 9 Early 2024"]
[Site "https://www.chess.com"]
[Date "2024.01.11"]
[Round "10"]
[White "Kozak, Antoni"]
[Black "Zemlyanskii, Ivan"]
[Result "0-1"]
[Board "169"]
[TimeControl "180+1"]
[WhiteFideId "21832030"]
[BlackFideId "24249971"]
[WhiteElo "2762"]
[BlackElo "2982"]
[WhiteTeam "POL"]
[BlackTeam "RUS"]
[WhiteClock "0:00:13"]
[BlackClock "0:00:03"]

1. c4 {[%clk 0:03:00]}  e6 {[%clk 0:02:59]} 2. Nc3 {[%clk 0:02:57]}  d5 {[%clk 0:03:00]} 3. e3 {[%clk 0:02:58]}  Nf6 {[%clk 0:03:00]} 4. Nf3 {[%clk 0:02:58]}  c6 {[%clk 0:03:00]} 5. b3 {[%clk 0:02:58]}  Nbd7 {[%clk 0:02:58]} 6. Bb2 {[%clk 0:02:59]}  Bd6 {[%clk 0:02:59]} 7. d4 {[%clk 0:02:59]}  O-O {[%clk 0:02:52]} 8. Be2 {[%clk 0:02:56]}  b6 {[%clk 0:02:52]} 9. O-O {[%clk 0:02:55]}  Bb7 {[%clk 0:02:52]} 10. Qc2 {[%clk 0:02:50]}  Re8 {[%clk 0:02:49]} 11. Rfd1 {[%clk 0:02:46]}  Qe7 {[%clk 0:02:47]} 12. a4 {[%clk 0:02:41]}  a5 {[%clk 0:02:32]} 13. Bf1 {[%clk 0:02:35]}  Rac8 {[%clk 0:02:28]} 14. Rac1 {[%clk 0:02:32]}  h6 {[%clk 0:02:11]} 15. h3 {[%clk 0:02:32]}  Nf8 {[%clk 0:02:04]} 16. Ne5 {[%clk 0:02:26]}  Red8 {[%clk 0:02:00]} 17. Qe2 {[%clk 0:02:23]}  Ba6 {[%clk 0:01:52]} 18. Qf3 {[%clk 0:02:18]}  Bb7 {[%clk 0:01:51]} 19. Qe2 {[%clk 0:02:17]}  N8d7 {[%clk 0:01:46]} 20. f4 {[%clk 0:02:09]}  Bb4 {[%clk 0:01:38]} 21. Na2 {[%clk 0:01:59]}  Ba3 {[%clk 0:01:31]} 22. Nc3 {[%clk 0:01:57]}  Bxb2 {[%clk 0:01:18]} 23. Qxb2 {[%clk 0:01:58]}  c5 {[%clk 0:01:15]} 24. Nb5 {[%clk 0:01:53]}  cxd4 {[%clk 0:01:10]} 25. exd4 {[%clk 0:01:53]}  Rf8 {[%clk 0:00:42]} 26. Na7 {[%clk 0:01:50]}  Ra8 {[%clk 0:00:41]} 27. Nb5 {[%clk 0:01:51]}  Ne4 {[%clk 0:00:38]} 28. Bd3 {[%clk 0:01:47]}  Ndf6 {[%clk 0:00:37]} 29. c5 {[%clk 0:01:34]}  bxc5 {[%clk 0:00:27]} 30. Bxe4 {[%clk 0:01:32]}  Nxe4 {[%clk 0:00:25]} 31. dxc5 {[%clk 0:01:32]}  f6 {[%clk 0:00:09]} 32. Nd3 {[%clk 0:01:26]}  Rac8 {[%clk 0:00:07]} 33. Qd4 {[%clk 0:01:18]}  Rfe8 {[%clk 0:00:07]} 34. Re1 {[%clk 0:01:14]}  e5 {[%clk 0:00:07]} 35. Qb2 {[%clk 0:01:05]}  d4 {[%clk 0:00:07]} 36. Qc2 {[%clk 0:00:57]}  Bc6 {[%clk 0:00:05]} 37. Qc4+ {[%clk 0:00:54]}  Kh8 {[%clk 0:00:05]} 38. b4 {[%clk 0:00:52]}  axb4 {[%clk 0:00:05]} 39. Nxb4 {[%clk 0:00:53]}  Bxb5 {[%clk 0:00:04]} 40. Qxb5 {[%clk 0:00:51]}  Rxc5 {[%clk 0:00:04]} 41. Rxc5 {[%clk 0:00:51]}  Nxc5 {[%clk 0:00:05]} 42. fxe5 {[%clk 0:00:50]}  fxe5 {[%clk 0:00:04]} 43. Nc6 {[%clk 0:00:51]}  Qd6 {[%clk 0:00:04]} 44. a5 {[%clk 0:00:45]}  d3 {[%clk 0:00:04]} 45. Kh1 {[%clk 0:00:37]}  d2 {[%clk 0:00:04]} 46. Rd1 {[%clk 0:00:38]}  e4 {[%clk 0:00:05]} 47. Nd4 {[%clk 0:00:31]}  Rb8 {[%clk 0:00:05]} 48. Qc4 {[%clk 0:00:29]}  e3 {[%clk 0:00:06]} 49. Nf5 {[%clk 0:00:25]}  Qe5 {[%clk 0:00:06]} 50. Nd4 {[%clk 0:00:20]}  Ne4 {[%clk 0:00:06]} 51. Nf3 {[%clk 0:00:16]}  Nf2+ {[%clk 0:00:06]} 52. Kg1 {[%clk 0:00:17]}  Qg3 {[%clk 0:00:06]} 53. Ra1 {[%clk 0:00:15]}  d1=Q+ {[%clk 0:00:05]} 54. Rxd1 {[%clk 0:00:14]}  Nxd1 {[%clk 0:00:06]} 55. a6 {[%clk 0:00:15]}  Qf2+ {[%clk 0:00:05]} 56. Kh2 {[%clk 0:00:15]}  e2 {[%clk 0:00:05]} 57. Qc7 {[%clk 0:00:15]}  Ra8 {[%clk 0:00:04]} 58. Qe7 {[%clk 0:00:13]}  Ne3 {[%clk 0:00:03]} 59. Qe4 {[%clk 0:00:13]}  Qxg2# {[%clk 0:00:03]} 0-1